Workbook

Sheet InputSheet
A1: Parameters | B1: Value | C1: Comment | G1: A-Matrix==> | J1: To -->
A2: nDim | B2: 4 | C2: Dim. of problem=r+1 | E2: ni | F2: Pi(t) | G2: Pi | J2: 0 | K2: 1 | L2: 2 | M2: 3 | N2: 4 | O2: 5 | P2: 6 | Q2: 7 | R2: 8 | S2: 9
A3: MaxTime | B3: 730 | C3: For time dep. solut. | E3: 0 | F3: 0.0009219063213 | G3: 1 | H3: From | I3: 0 | K3: 0 | L3: 0
A4: Initial state | B4: 3 | C4: Initial state | E4: 0 | F4: 0.001139110653 | G4: 0 | H4: ¯ | I4: 1 | J4: =lambda -> 5e-05 | L4: 0
A5: State2Follow | B5: 1 | C5: State to plot | E5: 0 | F5: 0.04904694855 | G5: 0 | I5: 2 | J5: =lambda*beta -> 2.5e-06 | K5: =2*lambda*(1-beta) -> 9.5e-05
A6: lambda | B6: 5e-05 | C6: Failure rate | E6: 0 | F6: 0.9488893151 | G6: 0 | I6: 3 | J6: =lambda*beta -> 2.5e-06 | L6: =3*lambda*(1-beta) -> 0.0001425
A7: beta | B7: 0.05 | I7: 4
I8: 5
I9: 6
I10: 7
I11: 8
I12: 9
G14: t | H14: P1(t)
G15: 0 | H15: 0
A16: Analytical | B16: Value | C16: Formula | G16: 29.20000076 | H16: 5.665483513e-06
A17: Ind | B17: =(lambda*(1-beta)*MaxTime)^2 -> 0.001202355625 | C17: =_xlfn.FORMULATEXT(B17) -> =(lambda*(1-beta)*MaxTime)^2 | G17: 58.39999771 | H17: 2.277686326e-05
A18: Dep | B18: =lambda*beta*MaxTime/2 -> 0.0009125 | C18: =_xlfn.FORMULATEXT(B18) -> =lambda*beta*MaxTime/2 | G18: 87.6000061 | H18: 5.123640585e-05
A19: Tot PFD | B19: =SUM(B17:B18) -> 0.002114855625 | C19: =SUM(B17:B18) | G19: 116.8000183 | H19: 9.094696725e-05
G20: 146.0000305 | H20: 0.00014181195
A21: PFD Markov | B21: =Pt_0+Pt_1 -> 0.002061016974 | C21: =Pt_0+Pt_1 | G21: 175.2000427 | H21: 0.0002037353697
G22: 204.4000549 | H22: 0.0002766218095
A23: PFH 3->Feil | B23: =Pt_3*lambda*beta -> 2.372223288e-06 | C23: =Pt_3*lambda*beta | G23: 233.6000671 | H23: 0.0003603763762
A24: PFH 2->Feil | B24: =Pt_2*(lambda*beta+2*lambda*(1-beta)) -> 4.782077484e-06 | C24: =Pt_2*(lambda*beta+2*lambda*(1-beta)) | G24: 262.8000793 | H24: 0.0004549048026
A25: Tot PFH | B25: =SUM(B23:B24) -> 7.154300772e-06 | C25: =SUM(B23:B24) | G25: 292.0000305 | H25: 0.0005601132871
A26: Per år | B26: =B25*8760 -> 0.06267167476 | C26: =B25*8760 | G26: 321.1999817 | H26: 0.0006759085809
G27: 350.3999329 | H27: 0.0008021981921
G28: 379.599884 | H28: 0.000938889978
G29: 408.7998352 | H29: 0.001085892553
G30: 437.9997864 | H30: 0.001243114821
G31: 467.1997375 | H31: 0.00141046627
G32: 496.3996887 | H32: 0.00158785691
G33: 525.5996704 | H33: 0.001775197685
G34: 554.7996216 | H34: 0.001972399419
G35: 583.9995728 | H35: 0.002179373754
G36: 613.1995239 | H36: 0.002396033378
G37: 642.3994751 | H37: 0.002622290747
G38: 671.5994263 | H38: 0.002858059481
G39: 700.7993774 | H39: 0.003103252966
G40: 729.9993286 | H40: 0.003357785521
G41: Average | H41: =AVERAGE(H15:H40) -> 0.001160650368

Sheet Verify
C1: To -->
C2: 0 | D2: 1 | E2: 2 | F2: 3 | G2: 4 | H2: 5 | I2: 6 | J2: 7 | K2: 8 | L2: 9
A3: From | B3: 0 | C3: =ShowFormula(InputSheet!J3) ->  | D3: =ShowFormula(InputSheet!K3) -> 0 | E3: =ShowFormula(InputSheet!L3) -> 0 | F3: =ShowFormula(InputSheet!M3) ->  | G3: =ShowFormula(InputSheet!N3) ->  | H3: =ShowFormula(InputSheet!O3) ->  | I3: =ShowFormula(InputSheet!P3) ->  | J3: =ShowFormula(InputSheet!Q3) ->  | K3: =ShowFormula(InputSheet!R3) ->  | L3: =ShowFormula(InputSheet!S3) -> 
A4: ¯ | B4: 1 | C4: =ShowFormula(InputSheet!J4) -> =lambda | D4: =ShowFormula(InputSheet!K4) ->  | E4: =ShowFormula(InputSheet!L4) -> 0 | F4: =ShowFormula(InputSheet!M4) ->  | G4: =ShowFormula(InputSheet!N4) ->  | H4: =ShowFormula(InputSheet!O4) ->  | I4: =ShowFormula(InputSheet!P4) ->  | J4: =ShowFormula(InputSheet!Q4) ->  | K4: =ShowFormula(InputSheet!R4) ->  | L4: =ShowFormula(InputSheet!S4) -> 
B5: 2 | C5: =ShowFormula(InputSheet!J5) -> =lambda*beta | D5: =ShowFormula(InputSheet!K5) -> =2*lambda*(1-beta) | E5: =ShowFormula(InputSheet!L5) ->  | F5: =ShowFormula(InputSheet!M5) ->  | G5: =ShowFormula(InputSheet!N5) ->  | H5: =ShowFormula(InputSheet!O5) ->  | I5: =ShowFormula(InputSheet!P5) ->  | J5: =ShowFormula(InputSheet!Q5) ->  | K5: =ShowFormula(InputSheet!R5) ->  | L5: =ShowFormula(InputSheet!S5) -> 
B6: 3 | C6: =ShowFormula(InputSheet!J6) -> =lambda*beta | D6: =ShowFormula(InputSheet!K6) ->  | E6: =ShowFormula(InputSheet!L6) -> =3*lambda*(1-beta) | F6: =ShowFormula(InputSheet!M6) ->  | G6: =ShowFormula(InputSheet!N6) ->  | H6: =ShowFormula(InputSheet!O6) ->  | I6: =ShowFormula(InputSheet!P6) ->  | J6: =ShowFormula(InputSheet!Q6) ->  | K6: =ShowFormula(InputSheet!R6) ->  | L6: =ShowFormula(InputSheet!S6) -> 
B7: 4 | C7: =ShowFormula(InputSheet!J7) ->  | D7: =ShowFormula(InputSheet!K7) ->  | E7: =ShowFormula(InputSheet!L7) ->  | F7: =ShowFormula(InputSheet!M7) ->  | G7: =ShowFormula(InputSheet!N7) ->  | H7: =ShowFormula(InputSheet!O7) ->  | I7: =ShowFormula(InputSheet!P7) ->  | J7: =ShowFormula(InputSheet!Q7) ->  | K7: =ShowFormula(InputSheet!R7) ->  | L7: =ShowFormula(InputSheet!S7) -> 
B8: 5 | C8: =ShowFormula(InputSheet!J8) ->  | D8: =ShowFormula(InputSheet!K8) ->  | E8: =ShowFormula(InputSheet!L8) ->  | F8: =ShowFormula(InputSheet!M8) ->  | G8: =ShowFormula(InputSheet!N8) ->  | H8: =ShowFormula(InputSheet!O8) ->  | I8: =ShowFormula(InputSheet!P8) ->  | J8: =ShowFormula(InputSheet!Q8) ->  | K8: =ShowFormula(InputSheet!R8) ->  | L8: =ShowFormula(InputSheet!S8) -> 
B9: 6 | C9: =ShowFormula(InputSheet!J9) ->  | D9: =ShowFormula(InputSheet!K9) ->  | E9: =ShowFormula(InputSheet!L9) ->  | F9: =ShowFormula(InputSheet!M9) ->  | G9: =ShowFormula(InputSheet!N9) ->  | H9: =ShowFormula(InputSheet!O9) ->  | I9: =ShowFormula(InputSheet!P9) ->  | J9: =ShowFormula(InputSheet!Q9) ->  | K9: =ShowFormula(InputSheet!R9) ->  | L9: =ShowFormula(InputSheet!S9) -> 
B10: 7 | C10: =ShowFormula(InputSheet!J10) ->  | D10: =ShowFormula(InputSheet!K10) ->  | E10: =ShowFormula(InputSheet!L10) ->  | F10: =ShowFormula(InputSheet!M10) ->  | G10: =ShowFormula(InputSheet!N10) ->  | H10: =ShowFormula(InputSheet!O10) ->  | I10: =ShowFormula(InputSheet!P10) ->  | J10: =ShowFormula(InputSheet!Q10) ->  | K10: =ShowFormula(InputSheet!R10) ->  | L10: =ShowFormula(InputSheet!S10) -> 
B11: 8 | C11: =ShowFormula(InputSheet!J11) ->  | D11: =ShowFormula(InputSheet!K11) ->  | E11: =ShowFormula(InputSheet!L11) ->  | F11: =ShowFormula(InputSheet!M11) ->  | G11: =ShowFormula(InputSheet!N11) ->  | H11: =ShowFormula(InputSheet!O11) ->  | I11: =ShowFormula(InputSheet!P11) ->  | J11: =ShowFormula(InputSheet!Q11) ->  | K11: =ShowFormula(InputSheet!R11) ->  | L11: =ShowFormula(InputSheet!S11) -> 
B12: 9
